Cogmind - Beta 15 @@@ ROGUE MODE // 2025.07.19 @ 18:34:50 Player: Rockstar Result: Destroyed by D-53 Grenadier with Mini Grenade Launcher Performance ------------- Evolutions (1) 500 Regions Visited (4) 800 Robots Destroyed (6) 30 Value Destroyed (246) 246 Prototype IDs (1) 20 Alien Tech Used (0) 0 Bonus (0) 0 TOTAL SCORE: 1596 Bonus ------- None Cogmind --------- Core Integrity 0/400 Matter 270/300 Energy 100/100 System Corruption 0% Temperature Cool (0) Movement Hovering (240) Ox3 Location -9/Mines Parts ------- > --- POWER (1) -------- (None) > --- PROPULSION (2) --- Airjet > --- UTILITY (4) ------ Large Storage Unit Signal Interpreter > --- WEAPON (2) ------- Particle Cannon Assault Rifle > --- INVENTORY (15) --- Improved Ion Engine Cooled Ion Engine Cooled Ion Engine Airjet Airjet Airjet Heat Sink Heat Sink Great Maul Great Maul Great Maul Great Maul Peak State ------------ > --- POWER ------------ Cooled Ion Engine > --- PROPULSION ------- Light Treads Light Treads > --- UTILITY ---------- Large Storage Unit Signal Interpreter Terrain Scanner Reaction Control System > --- WEAPON ----------- Great Maul Great Maul > --- INVENTORY -------- Improved Ion Engine Cooled Ion Engine Cooled Ion Engine Light Treads Airjet Airjet Airjet Airjet Heat Sink Heat Sink Particle Cannon Assault Rifle Great Maul Great Maul [Rating: 20] Favorites ----------- Power Light Ion Engine Engine Light Ion Engine Propulsion Light Treads Treads Light Treads Hover Unit Airjet Utility Large Storage Unit Device Terrain Scanner Storage Large Storage Unit Processor Signal Interpreter Weapon Great Maul Energy Gun Small Laser Energy Cannon Particle Cannon Ballistic Gun Assault Rifle Impact Weapon Great Maul Build | -11 -10 -10 -9 -9 ------- Run | Yrd Mat Min Mat Min Slots Evolved 2 | . . . 2 . Power . | . . . . . Propulsion . | . . . . . Utility 2 | . . . 2 . Weapon . | . . . . . Parts Attached 21 | 6 3 . 9 3 Power 3 | 1 . . 2 . Engine 3 | 1 . . 2 . Core . | . . . . . Reactor . | . . . . . Propulsion 4 | 2 . . 1 1 Treads 3 | 2 . . 1 . Leg . | . . . . . Wheel . | . . . . . Hover 1 | . . . . 1 Flight . | . . . . . Utility 8 | 1 2 . 4 1 Device 4 | . 1 . 2 1 Storage 3 | 1 1 . 1 . Processor 1 | . . . 1 . Hackware . | . . . . . Protection . | . . . . . Artifact . | . . . . . Weapon 6 | 2 1 . 2 1 Energy Gun 1 | 1 . . . . Energy Cannon 1 | . . . . 1 Ballistic Gun 2 | 1 1 . . . Ballistic Cannon . | . . . . . Launcher . | . . . . . Special Weapon . | . . . . . Impact Weapon 2 | . . . 2 . Slashing Weapon . | . . . . . Piercing Weapon . | . . . . . Special Melee Weapon . | . . . . . Unidentified Prototypes 1 | . . . 1 . Parts Lost 7 | . . . . 7 Power 1 | . . . . 1 Propulsion 3 | . . . . 3 Utility 3 | . . . . 3 Weapon . | . . . . . Highest Loss Streak 7 | . . . . 7 To Critical Strikes . | . . . . . Average Backups 10 | 1 4 9 12 14 Power 2 | . 2 3 2 3 Propulsion 2 | . . . 3 4 Utility 2 | . 1 4 2 2 Weapon 2 | . 1 2 3 4 Tool/Special . | . . . . . Unused Backups 13 | . . . 5 8 Power 5 | . . . 3 2 Propulsion 3 | . . . . 3 Utility 2 | . . . 1 1 Weapon 3 | . . . 1 2 Tool/Special . | . . . . . Average Slot Usage (%) 96 | . 87 100 99 95 Engine 12 | . 14 14 11 11 Treads 24 | . 28 28 22 20 Device 15 | . 2 14 22 19 Storage 13 | . 14 14 14 11 Processor 4 | . . . 6 11 Energy Gun 2 | . 11 . . . Ballistic Gun 10 | . 16 28 5 . Impact Weapon 11 | . . . 16 21 Peak Build Rating 20 | 6 7 7 18 20 Average Rating 11 | 4 6 7 15 17 On Entrance 7 | . 6 7 7 18 Naked Turns . | . . . . . Heaviest Build 38 | 11 28 28 38 38 Greatest Support 40 | 40 40 40 40 40 Greatest Overweight (x) 12 | 2 . . . 12 Average Overweight (x) . | . . . . . Largest Inventory Capacity 15 | 8 15 15 15 15 Average Capacity 13 | 7 11 15 15 15 Most Carried 15 | 2 9 9 15 15 Average Carried 10 | 1 4 9 12 14 Final Capacity 15 | 8 15 15 15 15 Final Carried 15 | 2 9 9 15 12 Class Distribution -------------------- 58% | Mutant 41% | Assassin Dominant Class ---------------- Mutant | -10/Materials Mutant | -10/Mines Assassin | -9/Materials Assassin | -9/Mines Resources | -11 -10 -10 -9 -9 ----------- Run | Yrd Mat Min Mat Min Matter Collected 446 | 153 170 . 123 . Remotely . | . . . . . Salvage Created 271 | . 170 . 101 . Parts 9 | . 7 . 2 . Haulers Intercepted . | . . . . . Recyclers Shooed . | . . . . . Parts Field Recycled . | . . . . . Retrieved Matter . | . . . . . Parts Self-Destructed . | . . . . . Prevented . | . . . . . Kills | -11 -10 -10 -9 -9 ------- Run | Yrd Mat Min Mat Min Combat Hostiles Destroyed 6 | . 4 . 2 . Melee 2 | . . . 2 . Guns 4 | . 4 . . . Classes Destroyed 2 | . 1 . 1 . Grunt 4 | . 4 . . . Sentry 2 | . . . 2 . Best Kill Streak 2 | . 2 . 1 . Combat Bots Only 2 | . 2 . 1 . Max Kills in Single Turn 1 | . 1 . 1 . Gunslinging . | . . . . . Exploded . | . . . . . Melee 1 | . . . 1 . Uniques/NPCs Destroyed . | . . . . . Combat | -11 -10 -10 -9 -9 -------- Run | Yrd Mat Min Mat Min Hostile Shots Fired 72 | . 42 . 12 18 Missed 20 | . 14 . 6 . Hits 52 | . 28 . 6 18 Projectile 52 | . 28 . 6 18 AOE 22 | . . . . 22 Critical Strikes 1 | . . . 1 . Damage Taken 1315 | . 300 . 88 927 Core 437 | . 30 . 45 362 Absorbed by Shields . | . . . . . Core Remaining (%) 94 | 100 . 88 . . Volleys Fired 22 | . 21 1 . . Largest 2 | . 2 2 . . Hottest 60 | . 60 40 . . Shots Fired 44 | . 42 2 . . Gun 44 | . 42 2 . . Cannon . | . . . . . Launcher . | . . . . . Special . | . . . . . Kinetic 23 | . 21 2 . . Thermal 21 | . 21 . . . Explosive . | . . . . . Electromagnetic . | . . . . . Robot Hit Streak 3 | . 3 . . . Robot Miss Streak 2 | . 2 . . . Penetration Max . | . . . . . Secondary Targets . | . . . . . Shots Hit Robots 30 | . 26 . 3 1 Core Hits 10 | . 8 . 2 . Critical Kills 2 | . . . 2 . Critical Parts Destroyed . | . . . . . Critical Strikes 2 | . . . 2 . Smash 2 | . . . 2 . Melee Attacks 8 | . . . 6 2 Impact 8 | . . . 6 2 Slashing . | . . . . . Piercing . | . . . . . Sneak Attacks . | . . . . . Combat Hostiles . | . . . . . Follow-up Attacks . | . . . . . Damage Inflicted 478 | . 347 . 95 36 Guns 335 | . 335 . . . Cannons . | . . . . . Explosions . | . . . . . Melee 131 | . . . 95 36 Ramming 12 | . 12 . . . Kinetic 221 | . 221 . . . Thermal 114 | . 114 . . . Explosive . | . . . . . Electromagnetic . | . . . . . Impact 131 | . . . 95 36 Slashing . | . . . . . Piercing . | . . . . . Highest Corruption . | . . . . . Average Corruption . | . . . . . Corruption Purged . | . . . . . Corruption Blocked . | . . . . . Overload Shots . | . . . . . Overflow Damage 17 | . . . . 17 Projectiles . | . . . . . Explosions . | . . . . . Melee 17 | . . . . 17 Knockbacks 1 | . . . . 1 Impact 1 | . . . . 1 Kinetic . | . . . . . Secondary . | . . . . . Self-Inflicted Damage . | . . . . . Shots . | . . . . . Rammed 1 | . 1 . . . Targets Rammed 1 | . 1 . . . Kicked . | . . . . . Crushed . | . . . . . Highest Temperature 90 | . 90 . 6 . Average Temperature 45 | . 46 . 6 . Received Heat Transfer 222 | . 168 . 54 . Siege Activations . | . . . . . Martial Activations . | . . . . . Shielding Activations . | . . . . . Robots Disrupted . | . . . . . Combat Hostiles . | . . . . . Robots Corrupted . | . . . . . Combat Hostiles . | . . . . . Parts Fried . | . . . . . Impact Corruptions 1 | . . . . 1 Robots Melted . | . . . . . Combat Hostiles . | . . . . . Parts Melted 1 | . 1 . . . Heat Transferred 250 | . 250 . . . Parts Sabotaged . | . . . . . Parts Stolen . | . . . . . Parts Stripped . | . . . . . Power Chain Reactions . | . . . . . Alert | -11 -10 -10 -9 -9 ------- Run | Yrd Mat Min Mat Min Maximum Alert Level . | . . . . . Low Security (%) 100 | 100 100 100 100 100 Level 1 . | . . . . . Level 2 . | . . . . . Level 3 . | . . . . . Level 4 . | . . . . . Level 5 . | . . . . . High Security . | . . . . . Max Security . | . . . . . Peak Influence 60 | . 60 7 35 . Initial 7 | . . 7 . . Average 7 | . 23 . 6 . Influence Increases 200 | . 108 . 92 . Destroy 0b10 Robot/C 120 | . 80 . 40 . Destroy Leader 40 | . 20 . 20 . Successful Hack 10 | . 8 . 2 . Disable Machine 30 | . . . 30 . Influence Decreases 200 | . 88 20 92 . Entered New Map 13 | . . 13 . . Time Decay 187 | . 88 7 92 . Squads Dispatched 2 | . 2 . . . Investigation 1 | . 1 . . . Extermination . | . . . . . Reinforcement 1 | . 1 . . . Assault . | . . . . . Garrison . | . . . . . Intercept . | . . . . . Searches Triggered . | . . . . . Construction Impeded . | . . . . . Haulers Reinforced . | . . . . . Active Scanning Responses . | . . . . . Cargo Convoy Interrupts . | . . . . . Stealth | -11 -10 -10 -9 -9 --------- Run | Yrd Mat Min Mat Min Distress Signals . | . . . . . Communications Jammed . | . . . . . Distress Signals . | . . . . . Times Spotted 17 | . 7 . 4 6 Peak Tracking Total 4 | . 3 . 3 4 Tactical Retreats . | . . . . . Traps | -11 -10 -10 -9 -9 ------- Run | Yrd Mat Min Mat Min Traps Triggered 1 | . 1 . . . Indirectly . | . . . . . Trap Hack Attempts . | . . . . . Triggered . | . . . . . Disarmed . | . . . . . Reprogrammed . | . . . . . Reused . | . . . . . Traps Extracted . | . . . . . Installed . | . . . . . Triggered . | . . . . . Machines | -11 -10 -10 -9 -9 ---------- Run | Yrd Mat Min Mat Min Machines Disabled 2 | . . . 2 . Max in Single Turn 1 | . . . 1 . Machines Repaired . | . . . . . Machines Dismantled . | . . . . . Machines Sabotaged . | . . . . . Overloaded Fab Kills . | . . . . . Hacking | -11 -10 -10 -9 -9 --------- Run | Yrd Mat Min Mat Min Machines Accessed 4 | . 2 . 2 . Terminals 3 | . 2 . 1 . Fabricators . | . . . . . Repair Stations . | . . . . . Recycling Units . | . . . . . Scanalyzers 1 | . . . 1 . Garrison Access . | . . . . . Total Hacks 11 | . 5 . 6 . Successful 7 | . 3 . 4 . Failed 4 | . 2 . 2 . Catastrophic . | . . . . . Database Lockouts . | . . . . . Manual 5 | . 3 . 2 . Terminals 7 | . 5 . 2 . Fabricators . | . . . . . Repair Stations . | . . . . . Recycling Units . | . . . . . Scanalyzers 4 | . . . 4 . Garrison Access . | . . . . . Terminal Hacks 2 | . 2 . . . Branch Access Points 1 | . 1 . . . Registered Components 1 | . 1 . . . Fabricator Hacks . | . . . . . Repair Station Hacks . | . . . . . Recycling Unit Hacks . | . . . . . Scanalyzer 4 | . . . 4 . Insert Component 2 | . . . 2 . Analyze 2 | . . . 2 . Garrison Access Hacks . | . . . . . Unauthorized Hacks 1 | . 1 . . . Terminals 1 | . 1 . . . Botnet 1 | . 1 . . . Fabricators . | . . . . . Repair Stations . | . . . . . Recycling Units . | . . . . . Scanalyzers . | . . . . . Garrison Access . | . . . . . Data Cores Recovered . | . . . . . Used . | . . . . . Hacking Detections 4 | . 2 . 2 . Full Trace Events 1 | . . . 1 . Feedback Events . | . . . . . Feedback Blocked . | . . . . . Robot Schematics Acquired . | . . . . . Robots Built . | . . . . . Authchips . | . . . . . Time . | . . . . . Total Robot Build Rating . | . . . . . Part Schematics Acquired 2 | . . . 2 . Parts Built . | . . . . . Authchips . | . . . . . Time . | . . . . . Total Part Build Rating . | . . . . . Parts Repaired . | . . . . . Time . | . . . . . Parts Recycled . | . . . . . Recycled Matter . | . . . . . Retrieved Matter . | . . . . . Retrieved Components . | . . . . . Parts Scanalyzed 2 | . . . 2 . Part Schematics Acquired 2 | . . . 2 . Parts Damaged . | . . . . . Bothacking | -11 -10 -10 -9 -9 ------------ Run | Yrd Mat Min Mat Min Used RIF Installer . | . . . . . Robots Hacked . | . . . . . Non-combat . | . . . . . Combat . | . . . . . Robot Hacks Applied . | . . . . . Relay Couplers Released . | . . . . . Fabnet Peak Effective % . | . . . . . Robots Rewired . | . . . . . Allies Hacked . | . . . . . Hacks Repelled . | . . . . . Allies | -11 -10 -10 -9 -9 -------- Run | Yrd Mat Min Mat Min Total Allies . | . . . . . Largest Group . | . . . . . Highest-Rated Group . | . . . . . Highest-Rated Ally . | . . . . . Total Orders . | . . . . . Ally Attacks . | . . . . . Total Damage . | . . . . . Kills . | . . . . . Allies Corrupted . | . . . . . Allies Melted . | . . . . . Intel | -11 -10 -10 -9 -9 ------- Run | Yrd Mat Min Mat Min Active Infowar (turns) 872 | . 49 216 379 228 Sensors 466 | . . . 252 214 Terrain 872 | . 49 216 379 228 Robot Analysis Total . | . . . . . Derelict Logs Recovered . | . . . . . Drone Launches . | . . . . . Drone Recoveries . | . . . . . Exploration | -11 -10 -10 -9 -9 ------------- Run | Yrd Mat Min Mat Min Turns Passed 1159 | 54 246 216 379 264 Spaces Moved 619 | 30 107 134 198 150 Core 12 | 11 . . . 1 Treads 606 | 19 107 134 198 148 Legs . | . . . . . Wheels . | . . . . . Hover 1 | . . . . 1 Flight . | . . . . . Fastest Speed 50 | 50 160 160 160 160 Average Speed 160 | 146 160 160 160 164 Slowest Speed 650 | 160 160 160 160 650 Overloaded Moves . | . . . . . Propulsion Burnouts . | . . . . . Robots Hopped . | . . . . . Potential Cave-ins . | . . . . . Cave-ins Triggered . | . . . . . Exploration Rate (%) 19 | 4 20 16 23 34 Regions Visited 4 Branch Regions 2 Pre-discovered Areas . | . . . . . Known Exits Taken 2 | . 1 . 1 . Unknown Exits Taken 2 | 1 . 1 . . Scrap Searched 2 | . . . . 2 Spaces Dug . | . . . . . Terrain Destroyed . | . . . . . Melee . | . . . . . Projectile . | . . . . . AOE . | . . . . . Terrain Rammed . | . . . . . Walls Destroyed . | . . . . . Machines Disabled . | . . . . . Actions | -11 -10 -10 -9 -9 --------- Run | Yrd Mat Min Mat Min Total 725 | 37 139 134 252 163 Wait 23 | . . . 19 4 Move 615 | 29 106 133 197 150 Hop . | . . . . . Pick Up 20 | 2 6 . 11 1 Fast Attach 12 | 6 3 . 3 . Attach 5 | . . . 2 3 Detach 4 | . 1 . 3 . Swap 6 | . . . 4 2 Drop 10 | . 1 . 8 1 Fire 22 | . 21 1 . . Melee 7 | . . . 5 2 Ram . | . . . . . Kick . | . . . . . Crush 1 | . 1 . . . Escape Stasis . | . . . . . Rewire . | . . . . . Trap . | . . . . . Miscellaneous . | . . . . . Route ------- -11/Scrapyard -10/Materials (discovered 2 exits: *Min x2) -10/Mines -9/Materials -9/Mines (discovered 1 exit: *Mat) History --------- Turn | Location | Event 34 | -11/Scrapyard | Discovered new exit (range 12) 55 | -11/Scrapyard | Entered Materials 81 | -10/Materials | Identified exit to Mines 301 | -10/Materials | Entered Mines 309 | -10/Mines | Build established: Mutant 328 | -10/Mines | Met a Derelict bent on vengeance 501 | -10/Mines | Discovered new exit (range 3) 517 | -10/Mines | Entered Materials 517 | -9/Materials | Evolved 2 slots: Utility x2 881 | -9/Materials | Discovered new exit (range 9) 894 | -9/Materials | Identified exit to Mines 896 | -9/Materials | Entered Mines 929 | -9/Mines | Build established: Assassin 990 | -9/Mines | Discovered new exit (range 3) 995 | -9/Mines | Identified exit to Materials 1092 | -9/Mines | Assembled infested the area 1097 | -9/Mines | Assisted by a Guerilla fighting off Assembled 1132 | -9/Mines | Joined a pair of Derelicts in attacking an 0b10 outpost 1147 | -9/Mines | Core integrity fell below 50% 1158 | -9/Mines | Core integrity fell below 20% 1160 | -9/Mines | Destroyed by D-53 Grenadier with Mini Grenade Launcher Last Messages --------------- 01149_ U-05 Engineer lays Concrete. 01149_ Lgt. Treads destroyed. 01151_ U-05 Engineer lays Concrete. 01152_ The unstable cave ceiling collapses. 01152_ U-05 Engineer lays Concrete. 01152_ D-53 Grenadier destroyed. 01153_ U-05 Engineer builds a Wall. 01154_ The unstable cave ceiling collapses. 01155_ Destroyed Shock Absorption System. 01155_ D-53 Grenadier system corrupted by crushing effect. 01155_ D-53 Grenadier knocked back. 01155_ D-53 Grenadier IFF system glitched. 01155_ T-07 Excavator destroyed. 01155_ U-05 Engineer destroyed. 01156_ The unstable cave ceiling collapses. 01156_ K-01 Serf collects debris. 01157_ U-05 Engineer lays Concrete. 01157_ as-63027 destroyed. 01158_ U-05 Engineer builds a Wall. 01160_ Cld. Ion Engine destroyed. Map ----- +----------------------------------------------------+ | ??# < #????#??# #????????? | | ??# #???????# #????????? | | ??#### #######????#??# #???????? | | ?????# #?#?#???????#?# #??????##? | | ?????# #????#??#?????# #????#???? | | ?????# ############??# #?#??????? | | ?????# #??# #????????? | | ?????####### #### #?## #????????? | | ????????#### #??# #??# #????????? | | ?#????#?# ##?# #??# #????????? | | ????????# ####??# #??# #??##????? | | ?????#### ##?#??# #### #????????# | | ????## ###### #????????? | | ???## ####### #????????? | | ????## ###### #????????? | | ?????## % #??????? ? | | ?????###### ! #????????? | | ??????#??#### # #####???????? | | ???######???## ##????? | | ??##"[!"##??? # ###????? | | ??# [[" #### ### ##???? | | ?## = # !|u #### | | ?## *%=k | | ?# # ""## | | # # ## ####?# | | # @ da ### ####????# | | ?# ###??##???????? | | ?# #?#????????? | | ?## # #?????????? | | ??### ### ### #??????????? | | ????#######?# ###? #??????????? | | ????????????# #????#??????????? | | ????????????# ??? ???????????? | | ???????#????## ???????????????? | | ????????#????## ??????????????? | | ??????????????## ??????????????? | | ????????????????###?????????????? | | ????????????????????????????????? | | ????????????????????????????????? | | | | | | | | | | | | | | | | | | | | | | | +----------------------------------------------------+ Best States ------------- Heat Dissipation 38 Energy Generation 14 Energy Capacity 280 Matter Stores 300 Matter Capacity 400 Sight Range 16 Robot Scan Range 14 Terrain Scan Range 14 Terrain Scan Density 10 Evasion (%) 40 Recoil Reduction 2 Item Schematics ----------------- Lrg. Storage Unit | -9/Materials | Scanalyzed Heat Sink | -9/Materials | Scanalyzed Robot Schematics ------------------ None Fabricated ------------ Nothing Repaired ---------- Nothing Alien Tech Used ----------------- None Achievements -------------- None Challenges ------------ None Game ------ Seed DisposableImpactCompanion Manual? 0 Play Time 00:13:09 Cumulative 97.1 hours Start 2025.07.19 @ 18:21:11 End 2025.07.19 @ 18:34:50 Sessions 1 Manual Loads 0 Difficulty Rogue Special Mode None Game No. 92 Rogue 89 Adventurer 1 Explorer 2 Win Type - Total 0 Types 0/0/0/0/0/0/0/0/0/0 Lore% 38 Gallery% 52 Achievement% 39 Wizard Run 0 Options --------- Layout 0 ASCII 0 Keyboard 0 Movement Mouse Keybinds 0 Fullscreen 2 Font 24/Smallcaps Map View 76x50 Zoom Use 0% Tactical HUD 1 Map Filters NONE Filters NONE Steam 1 RUN: 3c16e1fc-2ca8-4030-b55b-128e5b65f217